bitfinex/quotes_ETHUSD_20240702
["timestamp","ask_amount","ask_price","bid_price","bid_amount"]
[1719881321049,7.50149417,3444.9,3444.4,0.826]
[1719881321260,0.6518573,3444.8,3444.4,0.826]
[1719881321548,0.50254279,3444.7,3444.2,3.0]
[1719881321785,2.13245417,3444.8,3444.2,3.826]
[1719881321999,0.14931669,3444.6,3444.2,3.826]
[1719881322145,2.13245417,3444.8,3444.2,3.826]
[1719881322336,0.14931669,3444.5,3444.2,3.826]
[1719881322540,3.40557247,3444.7,3444.2,3.826]
[1719881322541,2.90301,3444.7,3444.2,3.826]
[1719881322755,0.14931669,3444.4,3444.2,3.826]
[1719881323036,0.14931669,3444.3,3444.2,3.826]
[1719881323241,2.90301,3444.7,3444.2,3.826]
[1719881323442,0.14931669,3444.6,3444.2,3.826]
[1719881326377,0.14931669,3444.6,3444.2,5.043812]
[1719881328983,0.32140771,3444.5,3444.2,5.043812]
[1719881329347,0.14919299,3444.4,3444.2,5.043812]
[1719881329579,0.32140771,3444.3,3444.2,5.043812]
[1719881330241,0.32140771,3444.6,3444.2,5.043812]
[1719881330760,0.14919299,3444.5,3444.2,5.043812]
[1719881331081,0.32140771,3444.4,3444.2,3.0]
[1719881331279,0.32140771,3444.4,3444.1,3.0]
[1719881331580,0.32140771,3444.3,3444.1,3.0]
[1719881331802,0.32140771,3444.2,3444.1,3.0]
[1719881332078,0.32140771,3444.2,3444.0,3.2746]
[1719881332257,0.32140771,3444.1,3444.0,3.2746]
[1719881332461,0.32140771,3444.1,3444.0,6.2746]
[1719881332651,0.4706007,3444.1,3444.0,6.2746]
[1719881334185,0.14919299,3444.1,3444.0,6.2746]
[1719881334484,0.32124024,3444.1,3444.0,6.2746]
[1719881334663,0.14919299,3444.1,3444.0,6.2746]
[1719881334849,0.32124024,3444.1,3444.0,6.2746]
[1719881335183,0.14909093,3444.1,3444.0,3.826]
[1719881335362,0.47033117,3444.1,3444.0,3.826]
[1719881335542,0.47033117,3444.1,3443.9,3.0]
[1719881335749,0.32124024,3444.0,3443.9,0.826]
[1719881335967,0.32124024,3444.0,3443.9,3.0]
[1719881335968,0.47032808,3444.0,3443.9,3.0]
[1719881336168,0.47032808,3444.0,3443.9,3.826]
[1719881338251,0.47028024,3444.0,3443.9,3.826]
[1719881338549,0.47028024,3444.0,3443.9,5.047525]
[1719881340387,0.47028024,3444.0,3443.9,3.826]
[1719881340588,0.47028024,3444.0,3443.7,3.0]
[1719881340883,0.3211924,3443.9,3443.7,3.0]
[1719881341090,0.149026,3443.8,3443.7,3.0]
[1719881341265,0.4702184,3443.8,3443.7,3.0]
[1719881343884,0.4702184,3443.8,3443.7,3.826]
[1719881345364,0.149026,3443.8,3443.7,3.826]
[1719881345769,2.90344,3444.2,3443.7,3.826]
[1719881345972,0.1489734,3443.8,3443.7,3.826]
[1719881346176,7.44530202,3444.4,3443.7,4.19647176]
[1719881346358,0.14896723,3443.8,3443.7,3.826]
[1719881346562,2.9034,3444.3,3443.7,3.826]
[1719881346795,0.14896723,3443.8,3443.7,3.826]
[1719881346981,2.9034,3444.3,3443.7,6.72985]
[1719881347176,0.14896723,3443.8,3443.7,8.19915]
[1719881347376,2.9031,3444.6,3443.9,2.90367]
[1719881347377,5.03628202,3444.6,3443.9,2.90367]
[1719881347584,0.32122617,3444.5,3444.3,0.826]
[1719881347786,0.32122617,3444.4,3444.3,3.72934]
[1719881348169,0.47017483,3444.4,3444.1,5.19875]
[1719881348378,0.32122617,3444.3,3444.2,3.713671]
[1719881348587,0.32122617,3444.3,3444.2,4.539671]
[1719881348782,0.47024906,3444.3,3444.2,4.539671]
[1719881350272,0.47024906,3444.3,3443.8,5.21743]
[1719881350518,0.32122617,3444.2,3444.0,0.826]
[1719881350866,0.14905692,3444.1,3444.0,0.826]
[1719881351067,0.47028309,3444.1,3444.0,0.826]
[1719881352886,0.47028309,3444.1,3443.9,2.90367]
[1719881353213,0.14905692,3444.1,3444.0,0.826]
[1719881353414,0.45715757,3444.1,3444.0,0.826]
[1719881353585,0.30810065,3444.1,3444.0,0.826]
[1719881353912,0.45715757,3444.1,3444.0,0.826]
[1719881356014,0.45715757,3444.1,3444.0,4.92431]
[1719881356330,2.13273093,3444.7,3444.2,2.90342]
[1719881356537,0.29502674,3444.6,3444.5,0.826]
[1719881356699,0.29493774,3444.7,3444.6,2.90309]
[1719881356881,2.13273093,3445.1,3444.6,1.79369676]
[1719881357084,0.94661893,3445.0,3444.8,2.90285]
[1719881357329,0.29501119,3444.9,3444.7,2.90301]
[1719881357552,0.29501119,3444.9,3444.8,0.88405227]
[1719881357881,0.4441176,3444.9,3444.8,3.78690227]
[1719881358718,0.4441176,3444.9,3444.8,6.68982227]
[1719881359416,0.14910641,3444.9,3444.8,6.68982227]
[1719881359719,7.48,3445.4,3445.0,2.9027]
[1719881359884,0.28231345,3445.3,3445.0,3.7287]
[1719881360083,5.3849,3445.8,3445.0,3.7287]
[1719881360084,0.28231345,3445.2,3445.0,3.7287]
[1719881360315,0.28231345,3445.1,3445.0,3.7287]
[1719881363091,0.28231345,3445.1,3445.0,10.58871046]
[1719881363290,3.00659957,3446.0,3445.0,7.68596046]
[1719881363486,0.77161573,3445.9,3445.7,0.826]
[1719881363691,0.26922978,3445.8,3445.7,0.826]
[1719881363889,0.26922978,3445.8,3445.6,2.90224]
[1719881364150,3.00659957,3446.0,3445.6,2.90224]
[1719881364151,0.26922978,3445.7,3445.6,2.90224]
[1719881364293,3.00659957,3446.0,3445.7,2.90215]
[1719881364486,0.26926465,3445.9,3445.7,3.72815]
[1719881364712,0.26926465,3445.9,3445.8,2.90208]
[1719881366527,3.00659957,3446.0,3445.9,2.90199]
[1719881366733,3.00659957,3446.0,3445.9,3.72799]
[1719881368309,3.00659957,3446.0,3445.9,7.292987]
[1719881370263,5.25187,3446.9,3446.2,2.90173]
[1719881370401,0.26986332,3446.8,3446.2,3.72773]
[1719881370592,0.41498185,3446.8,3446.2,3.72773]
[1719881370830,0.26986332,3446.7,3446.2,3.72773]
[1719881371247,5.25187,3446.9,3446.2,3.72773]
[1719881371399,0.14511853,3446.6,3446.2,3.72773]
[1719881371729,0.14511853,3446.5,3446.2,3.72773]
[1719881371927,0.14511853,3446.5,3446.2,2.90173]
[1719881372133,6.36218437,3446.9,3446.2,0.826]
[1719881372328,0.14511853,3446.4,3446.2,0.826]
[1719881372516,5.25187,3446.9,3446.2,0.826]
[1719881372827,1.44263918,3446.8,3446.2,0.826]
[1719881373010,0.14515578,3446.8,3446.2,0.826]
[1719881374345,3.04640578,3446.8,3445.9,2.90197]
[1719881374541,0.26968552,3446.7,3446.0,3.7279]
[1719881375046,0.14519921,3446.6,3446.0,3.7279]
[1719881375210,3.04660921,3446.6,3445.8,2.90207]
[1719881375406,2.4822,3446.5,3445.9,0.826]
[1719881376012,0.14519921,3446.4,3445.9,0.826]
[1719881376747,0.14519921,3446.4,3445.9,3.72799]
[1719881376940,0.14519921,3446.4,3446.3,0.826]
[1719881377443,5.35498,3446.9,3446.3,0.826]
[1719881377946,0.14514335,3446.8,3446.3,0.826]
[1719881379217,0.14514335,3446.8,3446.6,0.826]
[1719881379617,2.2626,3447.2,3446.6,0.826]
[1719881379817,0.14523958,3446.7,3446.6,0.826]
[1719881380148,0.14529235,3446.7,3446.6,0.826]
[1719881380353,2.2626,3447.2,3446.6,0.826]
[1719881380567,0.14529235,3446.7,3446.6,0.826]
[1719881380754,2.2626,3447.2,3446.6,0.826]
[1719881380941,0.14529235,3446.7,3446.6,0.826]
[1719881381139,2.2626,3447.2,3446.6,0.826]
[1719881381441,0.1453358,3446.7,3446.6,0.826]
[1719881381952,2.2626,3447.2,3446.6,0.826]
[1719881382248,0.1453358,3446.7,3446.6,0.826]
[1719881382437,2.2626,3447.2,3446.6,0.826]
[1719881382632,0.1453358,3446.7,3446.6,0.826]
[1719881382827,2.2626,3447.2,3446.6,0.826]
[1719881383023,0.1453358,3446.7,3446.6,3.7274]
[1719881383214,2.2626,3447.2,3446.6,3.7274]
[1719881383420,0.1453358,3446.7,3446.6,3.7274]
[1719881383617,2.2626,3447.2,3446.6,3.7274]
[1719881383822,0.1453358,3446.7,3446.6,3.7274]
[1719881384319,2.2626,3447.2,3446.6,3.7274]
[1719881384515,0.14536373,3447.1,3446.6,3.7274]
[1719881386155,0.14535752,3447.0,3446.6,3.7274]
[1719881386354,0.14535752,3447.0,3446.8,0.826]
[1719881386522,5.24616,3447.5,3446.8,0.826]
[1719881386850,0.14545374,3447.4,3446.8,0.826]
[1719881387419,3.04618374,3447.4,3446.8,0.826]
[1719881389376,3.04618374,3447.4,3447.0,0.826]
[1719881389377,0.14545374,3447.4,3447.0,0.826]
[1719881389875,2.90057,3447.6,3447.0,0.826]
[1719881390079,3.709899,3447.6,3447.0,0.826]
[1719881390275,0.14553441,3447.5,3447.0,0.826]
[1719881390592,0.14553441,3447.5,3446.9,2.90108]
[1719881390773,0.14553441,3447.5,3447.0,0.826]
[1719881391379,2.2923,3447.4,3446.7,2.90131]
[1719881391779,0.14563373,3447.3,3446.7,2.90131]
[1719881394485,0.14563373,3447.3,3446.8,0.826]
[1719881398395,0.14563373,3447.3,3447.0,0.826]
[1719881398563,0.14563373,3447.3,3447.0,3.1262]
[1719881398759,5.16367,3447.6,3447.0,3.1262]
[1719881398964,0.14556546,3447.2,3447.0,3.1262]
[1719881399183,5.16367,3447.6,3447.0,3.1262]
[1719881399492,0.5021568,3447.5,3447.0,3.1262]
[1719881399794,0.14556546,3447.5,3447.2,0.826]
[1719881400493,0.14556546,3447.5,3447.2,1.428726]
[1719881400791,2.90043,3447.8,3447.2,1.428726]
[1719881400995,2.3428,3447.9,3447.2,1.428726]
[1719881400996,0.1456399,3447.4,3447.2,2.90088]
[1719881401296,2.90031,3448.0,3447.3,0.826]
[1719881401472,0.5021288,3447.9,3447.5,0.826]
[1719881401673,0.77289257,3447.8,3447.4,0.826]
[1719881401873,0.5021288,3447.7,3447.4,0.826]
[1719881402074,2.90031,3448.0,3447.4,0.826]
[1719881402283,0.14575781,3447.6,3447.4,0.826]
[1719881402502,2.90031,3448.0,3447.4,0.826]
[1719881402801,0.91871279,3447.9,3447.4,0.826]
[1719881402960,0.77295498,3447.8,3447.6,0.826]
[1719881403161,0.14580745,3447.8,3447.6,0.826]
[1719881403361,0.27089623,3447.7,3447.6,0.826]
[1719881403593,0.27089623,3447.7,3447.5,5.28303]
[1719881403594,0.14585708,3447.7,3447.5,5.28303]
[1719881403788,0.14585708,3447.7,3447.6,0.826]
[1719881404004,7.48,3448.1,3447.6,0.826]
[1719881404189,0.14585708,3447.7,3447.6,0.826]
[1719881404406,2.3428,3448.2,3447.6,0.826]
[1719881404589,0.14585708,3447.7,3447.6,0.826]
[1719881404799,2.3428,3448.2,3447.6,3.72655]
[1719881405012,0.14585708,3447.7,3447.6,3.72655]
[1719881405213,2.3428,3448.2,3447.6,3.72655]
[1719881405410,0.14585708,3447.7,3447.6,3.72655]
[1719881405625,2.3428,3448.2,3447.6,3.72655]
[1719881405816,0.14585708,3447.7,3447.6,3.72655]
[1719881406001,2.3428,3448.2,3447.6,3.72655]
[1719881406205,0.77326829,3448.1,3447.8,0.826]
[1719881406382,2.3763,3448.3,3447.7,2.90046]
[1719881406589,0.27110116,3448.2,3448.0,0.826]
[1719881406787,2.2642,3448.5,3448.0,0.826]
[1719881407085,0.7731882,3448.4,3447.8,3.72638]
[1719881407298,0.7731882,3448.3,3447.8,3.72638]
[1719881407514,0.27115007,3448.2,3447.8,3.72638]
[1719881407679,2.2642,3448.5,3447.8,3.72638]
[1719881407884,1.67226185,3448.4,3447.8,3.72638]
[1719881408174,0.27122736,3448.3,3447.8,3.72638]
[1719881408339,5.89966,3448.7,3448.0,3.72615]
[1719881408340,0.27122736,3448.2,3448.0,3.72615]
[1719881408483,2.4603,3448.7,3447.8,2.90037]
[1719881408685,2.89982,3448.5,3448.0,0.826]
[1719881409054,3.67319661,3448.4,3447.8,0.826]
[1719881409331,0.77329661,3448.3,3447.8,0.826]
[1719881409489,2.7315503,3448.2,3447.8,0.826]
[1719881409689,0.2712503,3448.1,3447.8,0.826]
[1719881410531,0.2712503,3448.1,3447.4,2.90069]
[1719881410731,0.2712503,3448.1,3447.3,2.4586]
[1719881410913,0.2712503,3448.1,3447.5,0.826]
[1719881411222,0.2712503,3448.1,3447.1,8.35957]
[1719881411223,2.90033,3447.9,3447.1,8.35957]
[1719881411422,0.2712503,3447.8,3447.3,0.826]
[1719881412112,3.1716503,3447.8,3447.1,8.35957]
[1719881412315,2.5969503,3447.7,3447.1,6.72697]
[1719881412527,5.22618,3447.7,3447.1,3.826]
[1719881412895,0.2708638,3447.6,3447.1,3.826]
[1719881413604,2.90037,3447.9,3447.3,0.826]
[1719881413811,0.27080742,3447.8,3447.3,0.826]
[1719881415100,3.17120742,3447.8,3447.3,0.826]
[1719881415313,0.27080742,3447.7,3447.3,0.826]
[1719881415618,2.90042,3447.8,3447.3,0.826]
[1719881415833,0.27080569,3447.7,3447.3,0.826]
[1719881417217,0.14624479,3447.6,3447.3,0.826]
[1719881417736,2.90042,3447.8,3447.3,0.826]
[1719881418044,0.41701988,3447.7,3447.3,0.826]
[1719881418191,0.27077509,3447.6,3447.3,0.826]
[1719881418822,0.14624479,3447.5,3447.1,5.90097]
[1719881419026,0.14624479,3447.5,3447.2,0.826]
[1719881419207,2.90042,3447.8,3447.2,0.826]
[1719881419403,0.14616415,3447.4,3447.2,0.826]
[1719881419608,2.90042,3447.8,3447.2,0.826]
[1719881419803,0.14616415,3447.3,3447.2,0.826]
[1719881420009,2.90042,3447.8,3447.2,0.826]
[1719881420330,0.77302353,3447.7,3447.2,0.826]
[1719881420512,2.90042,3447.8,3446.9,5.29415]
[1719881420513,0.77302749,3447.6,3446.9,5.29415]
[1719881420693,0.27088254,3447.5,3447.0,0.826]
[1719881421237,2.88124669,3447.4,3446.6,2.9014]
[1719881421413,4.49990196,3447.3,3446.4,2.4598]
[1719881421600,0.77305196,3447.2,3446.4,3.2858]
[1719881421941,0.91919441,3447.1,3446.5,2.90143]
[1719881422229,0.27088254,3447.0,3446.5,2.90143]
[1719881422799,0.41702499,3446.9,3446.5,2.90143]
[1719881422997,0.27088254,3446.8,3446.5,2.90143]
[1719881423613,0.41702499,3446.7,3446.5,2.90143]
[1719881423850,0.14614245,3446.7,3446.5,2.90143]
[1719881424150,5.02945113,3447.2,3446.5,2.90143]
[1719881424353,0.91875474,3447.1,3446.5,2.90143]
[1719881424516,0.27037729,3447.0,3446.5,2.90143]
[1719881424715,0.27037729,3447.0,3446.6,0.826]
[1719881424930,0.41651974,3446.9,3446.8,0.826]
[1719881426988,0.14614245,3446.9,3446.8,9.02038]
[1719881427351,2.12886091,3447.5,3447.0,2.901]
[1719881427548,0.41675607,3447.4,3447.1,0.826]
[1719881427752,0.27076252,3447.3,3447.1,0.826]
[1719881427947,0.27076252,3447.3,3447.0,2.901]
[1719881428168,0.41675607,3447.2,3447.0,2.901]
[1719881428464,0.27076252,3447.1,3447.0,2.901]
[1719881429027,0.14599355,3447.1,3447.0,2.901]
[1719881429256,0.41675607,3447.1,3447.0,2.901]
[1719881434984,0.41675607,3447.1,3446.9,0.826]
[1719881435150,0.27076252,3447.0,3446.9,0.826]
[1719881435349,0.41678087,3447.0,3446.9,3.72715]
[1719881435550,0.41678087,3447.0,3446.9,4.929179]
[1719881436761,0.14601835,3447.0,3446.9,4.98719461]
[1719881436960,2.12973443,3447.6,3447.0,2.90102]
[1719881437281,0.41654299,3447.5,3447.2,0.826]
[1719881437584,0.27078518,3447.4,3447.2,0.826]
[1719881438165,0.41654299,3447.3,3447.2,0.826]
[1719881439288,0.41654299,3447.3,3447.2,6.5186014]
[1719881439793,0.27078518,3447.3,3447.2,6.5186014]
[1719881439952,0.27078518,3447.7,3447.2,6.5186014]
[1719881440149,2.12965827,3447.8,3447.2,6.5186014]
[1719881440150,0.41658024,3447.6,3447.4,0.826]
[1719881440362,0.27078518,3447.5,3447.4,0.826]
[1719881440859,0.14579816,3447.5,3447.4,0.826]
[1719881441071,0.41658334,3447.5,3447.4,0.826]
[1719881441390,0.41658644,3447.5,3447.4,0.826]
[1719881441886,0.41658644,3447.5,3447.4,7.86940814]
[1719881442092,0.14580126,3447.5,3447.4,10.36200814]
[1719881442592,7.48,3448.1,3447.8,2.90033]
[1719881442797,0.27132083,3448.0,3447.8,3.72633]
[1719881442966,0.27132083,3447.9,3447.8,3.72633]
[1719881443294,2.12962559,3448.4,3447.9,5.20725]
[1719881444156,0.27132098,3448.3,3448.1,2.90009]
[1719881444393,2.12962559,3448.5,3448.2,3.72606]
[1719881444593,0.27161782,3448.4,3448.2,3.72606]
[1719881444774,0.27161782,3448.3,3448.2,3.72606]
[1719881445400,0.27161782,3448.3,3448.2,0.826]
[1719881445564,2.40023311,3448.5,3448.0,3.72617]
[1719881445762,0.27161782,3448.4,3448.0,3.72617]
[1719881446395,1.05104313,3448.4,3447.9,0.826]
[1719881446601,2.90229245,3448.3,3447.7,2.90047]
[1719881446764,0.27161782,3448.2,3447.7,2.90047]
[1719881446967,0.1462386,3448.1,3447.5,5.9006]
[1719881447260,0.27161782,3448.0,3447.5,6.7266]
[1719881447701,0.14634713,3447.9,3447.5,6.7266]
[1719881448003,0.14634713,3447.9,3447.3,3.72677]
[1719881448004,0.27161782,3447.8,3447.3,3.72677]
[1719881448603,0.1463037,3447.7,3447.4,2.90072]
[1719881448806,0.27161782,3447.6,3447.4,2.90072]
[1719881448968,0.1463037,3447.6,3447.5,0.826]
[1719881449318,0.27185512,3447.6,3447.5,3.72665]
[1719881449469,0.1463037,3447.6,3447.5,3.72665]
[1719881449679,0.27185512,3447.6,3447.5,3.72665]
[1719881449876,0.1463037,3447.6,3447.5,3.72665]
[1719881450108,4.42095636,3448.1,3447.5,3.72665]
[1719881450412,0.27186216,3448.0,3447.3,2.90075]
[1719881450606,0.41815656,3448.0,3447.5,0.826]
[1719881450791,0.27186216,3447.9,3447.5,0.826]
[1719881451189,0.41815656,3447.8,3447.5,0.826]
[1719881451390,0.27186216,3447.7,3447.2,2.90087]
[1719881451587,0.27186216,3447.7,3447.2,3.72687]
[1719881451792,0.41815656,3447.6,3447.2,3.72687]
[1719881452118,0.27186216,3447.5,3447.2,3.72687]
[1719881452675,0.1462944,3447.4,3447.2,3.72687]
[1719881453102,5.0287671,3447.9,3447.2,3.72687]
[1719881453301,0.1462944,3447.3,3447.2,3.72687]
[1719881453503,5.0287671,3447.9,3447.2,6.72687]
[1719881453716,0.1462944,3447.3,3447.2,6.72687]
[1719881453923,5.0287671,3447.9,3447.2,6.72687]
[1719881454216,0.27165441,3447.8,3447.2,6.72687]
[1719881454415,0.41794881,3447.8,3447.2,6.72687]
[1719881454580,0.27165441,3447.7,3447.2,6.72687]
[1719881455018,0.41794881,3447.6,3447.2,6.72687]
[1719881455204,0.27165441,3447.5,3447.2,6.72687]
[1719881455513,0.27165441,3447.5,3447.1,0.826]
[1719881455715,0.41794881,3447.4,3447.0,2.90105]
[1719881456013,0.27172833,3447.3,3447.1,2.90098]
[1719881456193,0.27172833,3447.3,3447.1,3.72698]
[1719881456383,0.27172833,3447.3,3447.1,0.826]
[1719881456384,0.14620137,3447.2,3447.1,0.826]
[1719881456583,0.27172833,3447.2,3447.1,0.826]
[1719881456802,0.14620137,3447.2,3447.1,0.826]
[1719881457002,0.27172833,3447.4,3447.1,0.826]
[1719881457219,0.14620137,3447.2,3447.1,0.826]
[1719881457415,5.02962345,3447.7,3447.1,0.826]
[1719881457597,0.14620137,3447.2,3447.1,0.826]
[1719881457797,5.02962345,3447.7,3447.1,0.826]
[1719881457993,0.41783761,3447.6,3447.1,0.826]
[1719881458326,0.27163624,3447.5,3447.1,0.826]
[1719881458728,0.27163624,3447.5,3447.1,3.72697]
[1719881458930,0.41779727,3447.4,3447.1,3.72697]
[1719881459133,0.27163624,3447.3,3447.1,3.72697]
[1719881459302,0.14616103,3447.4,3447.1,3.72697]
[1719881459501,0.27166832,3447.3,3447.1,3.72697]
[1719881459721,0.14616103,3447.3,3447.1,3.72697]
[1719881460020,2.90049,3447.7,3447.1,3.72697]
[1719881460218,0.14616103,3447.2,3447.1,3.72697]
[1719881460397,2.90049,3447.7,3447.1,3.72697]
[1719881460597,0.14616103,3447.2,3447.1,3.72697]
[1719881460798,5.0295937,3447.7,3447.1,3.72697]
[1719881461099,0.41784723,3447.6,3447.1,3.72697]
[1719881461412,0.2716862,3447.5,3447.1,3.72697]
[1719881461619,0.2716862,3447.5,3446.8,2.3018]
[1719881461799,0.41784723,3447.4,3446.6,5.38438]
[1719881462006,4.8899899,3447.3,3446.7,2.90132]
[1719881462200,0.2716862,3447.2,3446.7,2.90132]
[1719881462406,0.2716862,3447.2,3446.7,3.72732]
[1719881462607,0.14599359,3447.1,3446.7,3.72732]
[1719881462925,0.2716862,3447.0,3446.7,3.72732]
[1719881463426,0.14593463,3446.9,3446.7,3.72732]
[1719881464220,0.14593463,3446.8,3446.7,3.72732]
[1719881464527,4.61850241,3447.3,3446.7,3.72732]
[1719881464732,0.14593463,3446.8,3446.7,3.72732]
[1719881465036,0.14593463,3446.8,3446.7,0.826]
[1719881465333,7.51934241,3447.3,3446.7,0.826]
[1719881465534,0.14580747,3446.8,3446.7,0.826]
[1719881466032,7.51911273,3447.3,3446.7,0.826]
[1719881466233,0.14580747,3446.8,3446.7,0.826]
[1719881466405,5.39004,3447.3,3446.7,0.826]
[1719881466734,0.27149052,3447.2,3446.7,0.826]
[1719881466940,0.41729799,3447.2,3446.7,0.826]
[1719881467123,0.27149052,3447.1,3446.7,0.826]
[1719881467636,0.14580747,3447.0,3446.7,0.826]
[1719881467835,0.27149052,3446.9,3446.7,0.826]
[1719881468341,0.14580747,3446.8,3446.7,0.826]
[1719881468737,5.39004,3447.3,3446.7,0.826]
[1719881468915,0.14580747,3446.8,3446.7,0.826]
[1719881469610,5.39004,3447.3,3446.7,0.826]
[1719881469814,0.41752229,3447.2,3446.7,0.826]
[1719881470137,0.27171482,3447.1,3446.7,3.72731]
[1719881470512,0.27171482,3447.1,3446.9,0.826]
[1719881470721,0.41752229,3447.0,3446.9,0.826]
[1719881472235,0.14580747,3447.0,3446.9,6.94821319]
[1719881472438,2.12924316,3447.5,3447.2,2.90089]
[1719881472638,0.27177622,3447.4,3447.0,2.90101]
[1719881472837,0.27177622,3447.3,3447.0,2.90101]
[1719881473137,0.27177622,3447.2,3447.0,2.90101]
[1719881473307,0.27177622,3447.1,3447.0,2.90101]
[1719881473507,0.27177622,3447.4,3447.0,2.90101]
[1719881473742,0.27177622,3447.3,3447.1,2.90098]
[1719881473910,0.27177622,3447.2,3447.1,2.90098]
[1719881474110,0.27177622,3447.2,3446.8,2.90123]
[1719881474309,0.27177622,3447.1,3446.9,0.826]
[1719881474504,0.27177622,3447.0,3446.9,0.826]
[1719881474720,0.27177622,3447.3,3446.9,0.826]
[1719881474943,0.27177622,3447.2,3446.9,0.826]
[1719881475131,0.27177622,3447.1,3446.9,0.826]
[1719881475328,0.27177622,3447.0,3446.9,0.826]
[1719881475516,0.27177622,3447.3,3446.9,0.826]
[1719881475717,0.27177622,3447.2,3446.9,0.826]
[1719881475922,0.27177622,3447.1,3446.7,6.09402]
[1719881476236,0.27177622,3447.0,3446.7,6.09402]
[1719881476541,5.0301486,3447.4,3446.7,6.09402]
[1719881476842,0.77381001,3447.3,3446.7,6.09402]
[1719881477053,0.27163012,3447.2,3446.7,6.09402]
[1719881477424,0.41746239,3447.1,3446.5,2.3776]
[1719881477609,2.71673012,3447.0,3446.4,5.90151]
[1719881477810,0.27163012,3446.9,3446.4,5.90151]
[1719881478034,0.14581057,3446.8,3446.4,5.90151]
[1719881478247,0.27163012,3446.7,3446.4,5.90151]
[1719881478510,2.4451,3447.0,3446.4,5.90151]
[1719881478763,0.14581057,3446.6,3446.4,5.90151]
[1719881478943,2.4451,3447.0,3446.4,5.90151]
[1719881479142,0.14581057,3446.5,3446.4,5.90151]
[1719881479460,5.34619,3447.0,3446.4,3.0]
[1719881479743,5.34619,3447.0,3446.2,2.90174]
[1719881479744,0.14581057,3446.5,3446.2,3.72774]
[1719881479917,3.97577704,3446.9,3446.0,11.92848]
[1719881480119,0.14581057,3446.4,3446.0,0.826]
[1719881480313,0.14581057,3446.4,3445.7,2.90209]
[1719881480314,0.2712624,3446.3,3445.7,2.4582]
[1719881480509,0.14571437,3446.3,3445.8,0.826]
[1719881480733,7.50583187,3446.5,3445.8,0.826]
[1719881480943,0.14559648,3446.2,3445.8,0.826]
[1719881481244,2.90166,3446.3,3445.7,0.826]
[1719881481408,0.14559648,3446.1,3445.7,0.826]
[1719881481609,0.14559648,3446.1,3445.7,3.826]
[1719881481830,2.90158,3446.4,3445.7,3.826]
[1719881482031,5.03090187,3446.6,3445.8,2.90207]
[1719881482232,3.40381538,3446.5,3445.9,0.826]
[1719881482435,3.04690027,3446.5,3445.9,0.826]
[1719881482953,0.50232533,3446.4,3445.9,0.826]
[1719881483129,3.70543694,3446.5,3445.9,0.826]
[1719881483315,0.14534198,3446.3,3445.9,0.826]
[1719881483639,3.56002667,3446.5,3445.9,0.826]
[1719881483853,0.50233105,3446.4,3445.8,2.90207]
[1719881484155,0.14534198,3446.4,3445.8,2.90207]
[1719881485850,0.14534198,3446.4,3445.7,3.826]
[1719881486031,3.64136426,3446.3,3445.5,2.90233]
[1719881486247,3.72786,3446.1,3445.3,2.90246]
[1719881486948,0.14511232,3446.0,3445.3,2.90246]
[1719881488018,0.14511232,3446.0,3445.4,3.7284]
[1719881490223,0.14511232,3446.0,3445.6,0.826]
[1719881490423,2.4094,3446.4,3445.5,5.34397376]
[1719881490424,2.90145,3446.6,3445.8,3.72807]
[1719881490648,0.14487635,3446.5,3446.0,0.826]
[1719881490851,3.04637635,3446.5,3446.0,0.826]
[1719881491143,3.04637635,3446.5,3445.8,3.72807]
[1719881492857,4.17711786,3446.5,3445.8,3.72807]
[1719881493262,1.27561786,3446.5,3445.5,2.90233]
[1719881493465,3.2817,3446.4,3445.5,3.72833]
[1719881493662,2.90176,3446.2,3445.5,3.72833]
[1719881494149,0.14493534,3446.1,3445.5,3.72833]
[1719881501725,0.14493534,3446.1,3445.5,0.826]
[1719881501927,5.31032,3446.0,3445.2,2.90251]
[1719881502137,0.903815,3445.9,3445.2,2.90251]
[1719881502571,0.14497571,3445.8,3445.2,2.90251]
[1719881503344,0.14497571,3445.8,3445.1,0.826]
[1719881503541,0.14497571,3445.8,3445.1,3.826]
[1719881503763,3.04706571,3445.8,3445.0,2.9027]
[1719881503965,3.87640442,3445.8,3445.0,3.7287]
[1719881504161,3.87640442,3445.8,3445.1,2.90266]
[1719881505949,3.87640442,3445.8,3444.9,8.17531]
[1719881506180,2.4678,3445.7,3444.9,5.90281]
[1719881506477,3.09628044,3445.7,3444.9,5.90281]
[1719881506655,0.14484841,3445.6,3445.0,0.826]
[1719881507353,0.14484841,3445.6,3445.0,3.72875]
[1719881510984,0.14484841,3445.6,3445.0,2.90275]
[1719881511183,0.98653625,3445.6,3444.9,3.0]
[1719881511493,5.31814,3445.5,3444.9,3.0]
[1719881511785,5.46297597,3445.5,3444.9,3.0]
[1719881513587,2.90243,3445.4,3444.9,3.0]
[1719881514087,0.14464966,3445.3,3444.9,3.0]
[1719881515060,0.14463102,3445.2,3444.9,3.0]
[1719881515271,5.31814,3445.5,3444.9,3.0]
[1719881515576,0.14463102,3445.1,3444.9,3.0]
[1719881515780,5.31814,3445.5,3444.9,3.0]
[1719881515983,0.14463102,3445.0,3444.9,3.0]
[1719881516482,5.31814,3445.5,3444.9,3.0]
[1719881516659,0.14457202,3445.0,3444.9,3.0]
[1719881516858,5.31814,3445.5,3444.9,3.0]
[1719881517064,0.14457202,3445.4,3444.9,3.0]
[1719881517675,0.14457202,3445.4,3445.0,0.826]
[1719881519963,0.14457202,3445.4,3444.9,3.0]
[1719881520482,3.59327222,3445.4,3444.6,2.90306]
[1719881520777,2.2702,3445.2,3444.5,3.0]
[1719881520978,5.1728,3445.2,3444.4,2.90319]
[1719881521166,0.64706976,3445.1,3444.4,2.90319]
[1719881521366,0.14455028,3445.1,3444.4,2.90319]